bitfinex/quotes_BTCUSD_20250316
["timestamp","ask_amount","ask_price","bid_price","bid_amount"]
[1742154117920,0.00676905,83334.0,83331.0,0.204004]
[1742154119069,0.00676905,83334.0,83329.0,0.207009]
[1742154119463,0.00676905,83334.0,83329.0,0.206009]
[1742154119664,0.00676905,83334.0,83330.0,0.012]
[1742154120242,0.00676905,83334.0,83330.0,0.204005]
[1742154120628,0.086999,83335.0,83330.0,0.204005]
[1742154120825,0.086999,83335.0,83331.0,0.003]
[1742154121233,0.00676905,83334.0,83330.0,0.014]
[1742154121444,0.00676905,83334.0,83330.0,0.005]
[1742154122044,0.00676905,83334.0,83330.0,0.002]
[1742154122286,0.01876805,83334.0,83327.0,0.22746172]
[1742154122503,0.192004,83332.0,83331.0,0.003]
[1742154122698,0.012,83331.0,83330.0,0.002]
[1742154122903,0.00676905,83331.0,83330.0,0.002]
[1742154123103,0.012,83333.0,83327.0,0.21546072]
[1742154123307,0.00676905,83332.0,83327.0,0.21546072]
[1742154123629,0.00676905,83332.0,83327.0,0.21746072]
[1742154123986,0.00676905,83332.0,83327.0,0.21546072]
[1742154124223,0.00676905,83332.0,83327.0,0.21746072]
[1742154124414,0.00676905,83332.0,83328.0,0.012]
[1742154124613,0.00676905,83332.0,83330.0,0.003]
[1742154124983,0.00676905,83332.0,83328.0,0.012]
[1742154125850,0.00676905,83332.0,83330.0,0.003]
[1742154127119,0.00676905,83332.0,83330.0,0.002]
[1742154127596,0.192005,83331.0,83330.0,0.002]
[1742154127812,0.2055051,83331.0,83330.0,0.002]
[1742154128025,0.33867792,83331.0,83330.0,0.002]
[1742154128223,0.33717763,83331.0,83330.0,0.002]
[1742154128430,0.33717763,83331.0,83330.0,0.005]
[1742154128637,0.33717763,83331.0,83330.0,0.002]
[1742154129241,0.33717763,83331.0,83330.0,0.001]
[1742154129461,0.33717763,83331.0,83330.0,0.002]
[1742154129998,0.33717763,83331.0,83330.0,0.001]
[1742154130452,0.280037,83318.0,83313.0,0.01191366]
[1742154130961,0.28680629,83318.0,83313.0,0.01191366]
[1742154131342,0.00676929,83318.0,83313.0,0.01191366]
[1742154131522,0.00676929,83318.0,83317.0,0.2043772]
[1742154131747,0.268005,83332.0,83322.0,0.192026]
[1742154131948,0.762,83354.0,83328.0,0.20401]
[1742154131949,0.00676317,83330.0,83328.0,0.20401]
[1742154132288,0.00011367,83331.0,83330.0,0.204007]
[1742154132470,0.00011367,83331.0,83329.0,1.512]
[1742154132629,0.00028277,83331.0,83329.0,0.012]
[1742154133042,0.00676317,83330.0,83329.0,0.012]
[1742154133880,0.00028277,83331.0,83329.0,0.012]
[1742154134292,0.00028277,83331.0,83329.0,0.016]
[1742154134491,0.00028277,83331.0,83329.0,0.212007]
[1742154134829,0.00028277,83331.0,83330.0,0.012]
[1742154136797,0.00028277,83331.0,83330.0,0.016]
[1742154136999,0.00028277,83331.0,83330.0,0.004]
[1742154137288,0.00028277,83331.0,83330.0,0.016]
[1742154137833,0.00028277,83331.0,83330.0,0.02]
[1742154139570,0.00028277,83331.0,83330.0,1.52]
[1742154139922,0.00028277,83331.0,83330.0,1.82]
[1742154140124,0.00028277,83331.0,83330.0,1.812]
[1742154140326,0.00028277,83331.0,83330.0,1.816]
[1742154140528,0.00028277,83331.0,83330.0,1.82]
[1742154140711,0.00028277,83331.0,83330.0,1.816]
[1742154140912,0.00028277,83331.0,83330.0,1.812]
[1742154141109,0.00028277,83331.0,83330.0,1.87654085]
[1742154141326,0.00028277,83331.0,83330.0,1.94964085]
[1742154141710,0.00028277,83331.0,83330.0,1.95564085]
[1742154141909,0.00028277,83331.0,83330.0,1.9351]
[1742154142817,0.00028277,83331.0,83330.0,1.9411]
[1742154143085,0.00028277,83331.0,83330.0,1.95564085]
[1742154143610,0.00028277,83331.0,83330.0,1.96164085]
[1742154145012,0.000169,83344.0,83343.0,0.503975]
[1742154145155,0.000169,83344.0,83343.0,0.653375]
[1742154145784,0.000169,83344.0,83343.0,2.153375]
[1742154146184,0.000169,83344.0,83343.0,2.24601585]
[1742154146396,0.000169,83344.0,83343.0,2.70271585]
[1742154146643,0.0126511,83348.0,83345.0,0.011998]
[1742154146772,0.0126511,83348.0,83345.0,0.02714165]
[1742154147225,8e-05,83359.0,83358.0,0.51847985]
[1742154147465,0.0001692,83365.0,83364.0,0.503924]
[1742154147675,0.00058132,83365.0,83364.0,0.503924]
[1742154147848,0.00058132,83365.0,83364.0,2.003924]
[1742154148047,0.00058132,83365.0,83364.0,2.02856681]
[1742154148246,0.00058132,83365.0,83364.0,2.04034312]
[1742154148679,0.00058132,83365.0,83364.0,2.05488397]
[1742154148885,0.00058132,83365.0,83364.0,2.46658397]
[1742154149627,0.0008,83389.0,83388.0,0.203866]
[1742154149825,0.0008,83389.0,83388.0,0.353226]
[1742154149826,0.00091372,83389.0,83388.0,0.353226]
[1742154150475,0.00091372,83389.0,83388.0,0.37667153]
[1742154150922,0.00091372,83389.0,83388.0,0.38167153]
[1742154152602,0.00091372,83389.0,83388.0,0.38667153]
[1742154152959,0.00091372,83389.0,83388.0,0.18280553]
[1742154153179,0.0196018,83389.0,83388.0,0.01]
[1742154153383,0.0966018,83389.0,83388.0,0.01]
[1742154154049,0.0966018,83389.0,83388.0,0.005]
[1742154154498,0.0966018,83389.0,83388.0,0.008]
[1742154154977,0.09810108,83389.0,83388.0,0.003]
[1742154155726,0.011992,83382.0,83375.0,0.191903]
[1742154155930,0.011993,83381.0,83375.0,0.203897]
[1742154156247,0.011993,83380.0,83375.0,0.203897]
[1742154156828,0.00668918,83379.0,83376.0,0.011993]
[1742154157053,0.00668918,83379.0,83378.0,0.011993]
[1742154157262,0.01879635,83381.0,83378.0,0.011993]
[1742154157464,0.00668918,83379.0,83378.0,0.011993]
[1742154157659,0.01879635,83381.0,83378.0,0.011993]
[1742154157859,0.00668347,83379.0,83376.0,0.011993]
[1742154158079,0.01879635,83381.0,83376.0,0.013993]
[1742154158302,0.00668363,83378.0,83376.0,0.013993]
[1742154158506,0.191894,83379.0,83376.0,0.002]
[1742154158716,0.011993,83377.0,83376.0,0.002]
[1742154159347,0.011994,83371.0,83368.0,0.30918365]
[1742154159803,0.011994,83369.0,83368.0,0.30918365]
[1742154160264,0.011995,83365.0,83364.0,0.01211451]
[1742154160453,0.011995,83365.0,83364.0,0.0003382]
[1742154160959,0.00667359,83365.0,83364.0,0.0003382]
[1742154161139,0.203901,83374.0,83367.0,0.011995]
[1742154161294,0.2039,83374.0,83368.0,0.203914]
[1742154161507,0.011994,83373.0,83366.0,0.203919]
[1742154161917,0.011994,83373.0,83368.0,0.19192]
[1742154162479,0.077,83375.0,83369.0,0.011994]
[1742154162634,0.011993,83378.0,83371.0,0.011994]
[1742154162794,0.20389,83378.0,83372.0,0.203904]
[1742154163194,0.20389,83378.0,83372.0,0.011994]
[1742154163396,0.203896,83376.0,83371.0,0.011994]
[1742154163604,0.011993,83376.0,83371.0,0.011994]
[1742154163829,0.20389,83378.0,83372.0,0.203904]
[1742154164062,0.191897,83378.0,83374.0,0.2039]
[1742154164222,0.16110939,83402.0,83374.0,0.2039]
[1742154164223,0.011992,83386.0,83379.0,0.011993]
[1742154164426,0.191881,83385.0,83379.0,0.011993]
[1742154164645,0.011992,83386.0,83380.0,0.203885]
[1742154164846,0.00108282,83389.0,83385.0,0.011992]
[1742154165049,0.011992,83388.0,83382.0,0.011992]
[1742154165208,0.011992,83387.0,83382.0,0.011992]
[1742154165855,0.011992,83387.0,83382.0,0.203879]
[1742154166430,0.191881,83385.0,83380.0,0.011993]
[1742154166683,0.011992,83384.0,83378.0,0.203888]
[1742154166922,0.01866979,83384.0,83382.0,0.003]
[1742154167123,0.011992,83384.0,83382.0,0.003]
[1742154167274,0.011992,83384.0,83382.0,0.002]
[1742154167437,0.011992,83384.0,83378.0,0.203888]
[1742154167652,0.011992,83384.0,83380.0,0.002]
[1742154169319,0.011992,83384.0,83379.0,0.011993]
[1742154169532,0.011992,83384.0,83382.0,0.005]
[1742154169794,0.203877,83384.0,83382.0,0.002]
[1742154169923,0.203877,83384.0,83371.0,0.14916]
[1742154169924,0.011993,83377.0,83371.0,0.14916]
[1742154170122,0.011993,83380.0,83371.0,0.353066]
[1742154170335,0.191887,83382.0,83380.0,0.002]
[1742154170336,0.203879,83382.0,83380.0,0.002]
[1742154170722,0.09609226,83381.0,83380.0,0.002]
[1742154170947,0.09609226,83381.0,83372.0,0.191909]
[1742154170948,0.203892,83378.0,83372.0,0.191909]
[1742154171392,0.286485,83381.0,83374.0,0.191906]
[1742154171597,0.203888,83379.0,83372.0,0.191909]
[1742154171774,0.011993,83378.0,83372.0,0.191909]
[1742154172577,0.011993,83377.0,83371.0,0.002]
[1742154172910,0.011994,83375.0,83370.0,0.191914]
[1742154173137,0.011994,83375.0,83372.0,0.001]
[1742154173849,0.011993,83377.0,83372.0,0.19191]
[1742154174171,0.011993,83377.0,83372.0,0.19491]
[1742154174627,0.0826,83381.0,83376.0,0.011993]
[1742154174795,0.011993,83380.0,83372.0,0.014994]
[1742154175007,0.011993,83380.0,83374.0,0.191904]
[1742154175204,0.011993,83377.0,83372.0,0.003]
[1742154175406,0.203894,83377.0,83372.0,0.003]
[1742154175807,0.01879738,83376.0,83372.0,0.003]
[1742154176196,0.00638333,83375.0,83372.0,0.003]
[1742154176397,0.00638333,83375.0,83372.0,0.005]
[1742154176897,0.00638333,83375.0,83372.0,0.003]
[1742154177350,0.00638333,83375.0,83372.0,0.002]
[1742154177485,0.00638333,83375.0,83372.0,0.004]
[1742154177690,0.00638333,83375.0,83372.0,0.002]
[1742154178124,0.00638333,83375.0,83372.0,0.005]
[1742154178325,0.00638333,83375.0,83372.0,0.196908]
[1742154179787,0.00638333,83375.0,83374.0,0.2039]
[1742154179941,0.011992,83387.0,83382.0,0.191886]
[1742154180100,0.011992,83384.0,83377.0,0.011993]
[1742154180462,0.011993,83376.0,83372.0,0.005]
[1742154180704,0.011993,83376.0,83372.0,0.0033382]
[1742154180834,0.011993,83376.0,83372.0,0.0043382]
[1742154180835,0.011994,83373.0,83372.0,0.0043382]
[1742154181786,0.011994,83373.0,83372.0,0.0073382]
[1742154182193,0.143594,83373.0,83372.0,0.0003382]
[1742154182329,0.143594,83373.0,83372.0,0.0033382]
[1742154182541,0.14509355,83373.0,83372.0,0.0053382]
[1742154182887,0.143594,83373.0,83372.0,0.0053382]
[1742154183257,0.14509354,83373.0,83372.0,0.0053382]
[1742154183655,0.14509354,83373.0,83372.0,0.0003382]
[1742154183855,0.14509354,83373.0,83372.0,0.0023382]
[1742154184159,0.14509354,83373.0,83372.0,0.0043382]
[1742154184353,0.14509354,83373.0,83372.0,0.0023382]
[1742154184559,0.16389365,83373.0,83372.0,0.0023382]
[1742154184787,0.16389365,83373.0,83372.0,0.0033382]
[1742154184992,0.16389365,83373.0,83372.0,0.0023382]
[1742154185196,0.16389365,83373.0,83372.0,0.0003382]
[1742154185771,0.16389365,83373.0,83372.0,0.0013382]
[1742154186151,0.16239411,83373.0,83372.0,0.0003382]
[1742154187455,0.43103784,83373.0,83372.0,0.0003382]
[1742154189018,0.41223773,83373.0,83372.0,0.0003382]
[1742154189429,0.26864373,83373.0,83372.0,0.0003382]
[1742154190079,0.26864373,83373.0,83372.0,0.0123322]
[1742154190286,0.26864373,83373.0,83372.0,0.0003382]
[1742154190541,0.27500438,83373.0,83372.0,0.1922482]
[1742154190920,0.27500438,83373.0,83372.0,0.0003382]
[1742154191110,0.27500438,83373.0,83372.0,0.0023382]
[1742154191313,0.21026265,83373.0,83372.0,0.0003382]
[1742154191534,0.21176202,83373.0,83372.0,0.0003382]
[1742154191774,0.21176202,83373.0,83372.0,0.0023382]
[1742154191979,0.29436202,83373.0,83372.0,0.0023382]
[1742154192113,0.31166288,83373.0,83372.0,0.0023382]
[1742154192888,0.36066288,83373.0,83372.0,0.0043382]
[1742154193380,0.37520373,83373.0,83372.0,0.0003382]
[1742154193559,0.37520373,83373.0,83372.0,0.0023382]
[1742154193757,0.203922,83365.0,83364.0,0.0003382]
[1742154193941,0.55666554,83365.0,83364.0,0.0003382]
[1742154194143,0.56153192,83365.0,83364.0,0.0003382]
[1742154195450,0.60843192,83365.0,83364.0,0.0003382]
[1742154196180,0.60943192,83365.0,83364.0,0.0003382]
[1742154200540,0.62823453,83365.0,83364.0,0.0003382]
[1742154201445,0.60943192,83365.0,83364.0,0.0003382]
[1742154205982,0.62823439,83365.0,83364.0,0.0003382]
[1742154207324,0.60943192,83365.0,83364.0,0.0003382]
[1742154207539,0.56253192,83365.0,83364.0,0.0003382]
[1742154207747,0.47993192,83365.0,83364.0,0.0003382]
[1742154207948,0.00736619,83365.0,83364.0,0.0003382]
[1742154208912,0.00636619,83365.0,83364.0,0.0003382]
[1742154209130,0.00636619,83365.0,83364.0,0.0023382]
[1742154209345,0.203919,83367.0,83364.0,0.01443597]
[1742154209553,0.21027771,83365.0,83364.0,0.0023382]
[1742154209784,0.203922,83365.0,83364.0,0.0003382]
[1742154209902,0.21027771,83365.0,83364.0,0.0003382]
[1742154210108,0.21027771,83365.0,83364.0,0.0033382]
[1742154210305,0.21027771,83365.0,83364.0,0.0063382]
[1742154211153,0.21027771,83365.0,83364.0,0.01859623]
[1742154212318,0.01835071,83365.0,83364.0,0.01859623]
[1742154213097,0.00635571,83365.0,83364.0,0.01859623]
[1742154213288,0.00635571,83365.0,83364.0,0.03059123]
[1742154213493,0.011994,83369.0,83364.0,0.03059123]
[1742154213706,0.00635571,83365.0,83364.0,0.03059123]
[1742154213878,0.011995,83366.0,83364.0,0.01859623]
[1742154214076,0.00635571,83365.0,83364.0,0.01859623]
[1742154214342,0.011995,83366.0,83364.0,0.01859623]
[1742154214566,0.203921,83366.0,83364.0,0.01859623]
[1742154214776,0.011995,83365.0,83364.0,0.0033382]
[1742154214958,0.01835071,83365.0,83364.0,0.0023382]
[1742154215363,0.01835071,83365.0,83364.0,0.0033382]
[1742154215790,0.03715209,83365.0,83364.0,0.0023382]
[1742154215955,0.03715209,83365.0,83364.0,0.0053382]
[1742154216351,0.03715209,83365.0,83364.0,0.0033382]
[1742154216921,0.03715209,83365.0,83364.0,0.0063382]
[1742154218562,0.01835071,83365.0,83364.0,0.0063382]
[1742154219768,0.01835071,83365.0,83364.0,0.0033382]
[1742154219968,0.01835071,83365.0,83364.0,0.0003382]
[1742154221942,0.03715237,83365.0,83364.0,0.0003382]
[1742154222339,0.0386521,83365.0,83364.0,0.0003382]
[1742154223099,0.01985044,83365.0,83364.0,0.0003382]
[1742154224774,0.01985044,83365.0,83364.0,2e-07]
[1742154225000,0.10255044,83365.0,83364.0,2e-07]
[1742154225203,0.37119417,83365.0,83364.0,2e-07]
[1742154225402,0.36969444,83365.0,83364.0,2e-07]
[1742154225621,0.66969444,83365.0,83364.0,2e-07]
[1742154226027,0.67169444,83365.0,83364.0,2e-07]
[1742154226236,0.67369444,83365.0,83364.0,2e-07]
[1742154228589,0.6859294,83365.0,83364.0,2e-07]
[1742154230123,0.67369444,83365.0,83364.0,2e-07]
[1742154230324,0.6924987,83365.0,83364.0,2e-07]
[1742154232710,0.3924987,83365.0,83364.0,2e-07]
[1742154235401,0.04115497,83365.0,83364.0,2e-07]
[1742154235786,0.04265463,83365.0,83364.0,2e-07]
[1742154236331,0.04065463,83365.0,83364.0,2e-07]
[1742154236528,0.03865463,83365.0,83364.0,2e-07]
[1742154237743,0.11395463,83365.0,83364.0,2e-07]
[1742154238339,0.11595463,83365.0,83364.0,2e-07]
[1742154239100,0.09565071,83365.0,83364.0,2e-07]
[1742154239303,0.02035071,83365.0,83364.0,2e-07]
[1742154240104,0.29116354,83365.0,83364.0,2e-07]
[1742154240547,0.28916354,83365.0,83364.0,2e-07]
[1742154240728,0.29016354,83365.0,83364.0,2e-07]
[1742154241141,0.28816354,83365.0,83364.0,2e-07]
[1742154241416,0.29016354,83365.0,83364.0,2e-07]
[1742154242416,0.30896648,83365.0,83364.0,2e-07]
[1742154243428,0.29016354,83365.0,83364.0,2e-07]
[1742154244705,0.33706354,83365.0,83364.0,2e-07]
[1742154250871,0.35586716,83365.0,83364.0,2e-07]
[1742154251875,0.33706354,83365.0,83364.0,2e-07]
[1742154255433,0.35586719,83365.0,83364.0,2e-07]
[1742154259310,0.29016354,83365.0,83364.0,2e-07]
[1742154262604,0.3089672,83365.0,83364.0,2e-07]
[1742154263779,0.29016354,83365.0,83364.0,2e-07]
[1742154266872,0.30896725,83365.0,83364.0,2e-07]
[1742154268091,0.29016354,83365.0,83364.0,2e-07]
[1742154271308,0.30896707,83365.0,83364.0,2e-07]
[1742154272244,0.29016354,83365.0,83364.0,2e-07]
[1742154275659,0.30896715,83365.0,83364.0,2e-07]
[1742154277396,0.31820261,83365.0,83364.0,2e-07]
[1742154279825,0.299399,83365.0,83364.0,2e-07]
[1742154283268,0.3182023,83365.0,83364.0,2e-07]
[1742154284180,0.299399,83365.0,83364.0,2e-07]
[1742154287364,0.31820325,83365.0,83364.0,2e-07]
[1742154288666,0.299399,83365.0,83364.0,2e-07]
[1742154289585,0.73143806,83365.0,83364.0,2e-07]
[1742154289798,0.70063985,83365.0,83364.0,2e-07]
[1742154290452,0.69863985,83365.0,83364.0,2e-07]
[1742154290850,0.70063985,83365.0,83364.0,2e-07]
[1742154291269,0.69963985,83365.0,83364.0,2e-07]
[1742154291643,0.72144474,83365.0,83364.0,2e-07]
[1742154292049,0.62020389,83365.0,83364.0,2e-07]
[1742154292804,0.301399,83365.0,83364.0,2e-07]
[1742154294407,0.449719,83365.0,83364.0,2e-07]
[1742154295739,0.46852322,83365.0,83364.0,2e-07]
[1742154300349,0.29216354,83365.0,83364.0,2e-07]
[1742154300553,0.01152481,83365.0,83364.0,2e-07]
[1742154300782,0.20345181,83365.0,83364.0,0.0811002]
[1742154300987,0.21544681,83365.0,83364.0,0.0811002]
[1742154301197,0.21344681,83365.0,83364.0,0.0811002]
[1742154301607,0.21744681,83365.0,83364.0,0.0811002]
[1742154301909,0.21344681,83365.0,83364.0,0.0811002]
[1742154302645,0.21344681,83365.0,83364.0,0.0821002]
[1742154303480,0.00952481,83365.0,83364.0,0.0950952]
[1742154303680,0.02832659,83365.0,83364.0,0.0831002]
[1742154303893,0.02197088,83365.0,83364.0,0.0831002]
[1742154304064,0.02197088,83365.0,83364.0,0.0950952]
[1742154304212,0.02804143,83365.0,83364.0,0.0950952]
[1742154304618,0.02197088,83365.0,83364.0,0.0950952]
[1742154305329,0.02197088,83365.0,83364.0,0.09569788]
[1742154305560,0.0001691,83365.0,83364.0,0.29259755]
[1742154305767,0.0001691,83365.0,83364.0,0.2949952]
[1742154305969,0.0001691,83365.0,83364.0,2.0949952]
[1742154306177,0.0001691,83372.0,83371.0,0.634707]
[1742154306888,0.0001691,83372.0,83371.0,2.134707]
[1742154307116,0.0001691,83372.0,83371.0,2.159111]
[1742154307759,0.0001691,83372.0,83371.0,2.165111]
[1742154308182,0.0001691,83372.0,83371.0,0.665111]
[1742154308537,0.0001691,83372.0,83371.0,0.671111]
[1742154311286,0.0001691,83372.0,83371.0,0.659111]
[1742154311492,0.0001691,83386.0,83377.0,0.634692]
[1742154313780,0.0001691,83386.0,83377.0,0.640692]
[1742154314158,0.0001691,83386.0,83377.0,0.646692]
[1742154314399,0.0001691,83386.0,83385.0,0.634673]
[1742154314580,0.0001691,83386.0,83385.0,0.782793]
[1742154314780,0.00601454,83386.0,83385.0,0.782793]
[1742154315528,0.00601454,83386.0,83385.0,0.4308]
[1742154315698,0.191881,83385.0,83384.0,0.7117]
[1742154316055,0.011993,83380.0,83376.0,0.02441191]
[1742154316217,0.011994,83373.0,83371.0,0.1264]
[1742154316429,0.203904,83372.0,83370.0,0.14808]
[1742154316616,0.20976,83372.0,83367.0,0.02419804]
[1742154317017,0.005856,83372.0,83369.0,0.20391]
[1742154317278,0.005856,83372.0,83371.0,0.011994]
[1742154317483,0.203892,83377.0,83372.0,0.3]
[1742154317684,0.011993,83377.0,83372.0,0.3]
[1742154318275,0.203892,83377.0,83372.0,0.3]
[1742154318483,0.203898,83375.0,83370.0,0.3]
[1742154318838,0.203898,83375.0,83372.0,0.005]
[1742154319039,0.011994,83375.0,83372.0,0.305]
[1742154319234,0.011993,83376.0,83372.0,0.305]
[1742154319439,0.011993,83376.0,83372.0,0.3]
[1742154319759,0.191904,83375.0,83372.0,0.3]
[1742154319974,0.191927,83365.0,83360.0,0.01189746]
[1742154320128,0.191927,83365.0,83362.0,0.3]
[1742154320550,0.20542137,83365.0,83355.0,0.14804]
[1742154320821,0.203922,83365.0,83356.0,0.31204857]
[1742154321054,0.203922,83365.0,83356.0,0.3]
[1742154321528,0.203922,83365.0,83356.0,0.3120594]
[1742154321766,0.203922,83365.0,83364.0,0.0030002]
[1742154321898,0.203922,83365.0,83364.0,2e-07]
[1742154322082,0.203922,83365.0,83364.0,0.0020002]
[1742154322486,0.011994,83370.0,83364.0,0.0020002]
[1742154322718,0.011995,83367.0,83364.0,0.0020002]
[1742154323133,0.203902,83373.0,83372.0,0.0003384]
[1742154323338,0.2039,83374.0,83372.0,0.0003384]
[1742154323553,0.011994,83374.0,83372.0,0.0003384]
[1742154323759,0.203895,83376.0,83372.0,0.0003384]
[1742154324054,0.011994,83375.0,83372.0,0.0003384]
[1742154324630,0.203891,83378.0,83372.0,0.0123324]
[1742154324826,0.011992,83383.0,83376.0,0.203894]
[1742154325029,0.001,83376.0,83374.0,0.011994]
[1742154325301,0.001,83376.0,83374.0,0.2039]
[1742154325448,0.01979774,83376.0,83374.0,0.2039]
[1742154325633,0.01979774,83376.0,83373.0,0.011994]
[1742154325859,0.01979774,83376.0,83373.0,1.511994]
[1742154326057,0.01979774,83376.0,83374.0,0.2039]
[1742154326261,0.00581146,83375.0,83374.0,0.2039]
[1742154326459,0.01879774,83376.0,83375.0,0.011994]
[1742154326803,0.0001691,83386.0,83381.0,0.010993]
[1742154327208,0.00581156,83385.0,83381.0,0.010993]
[1742154327417,0.00581156,83385.0,83384.0,0.011992]
[1742154328080,0.00581156,83385.0,83384.0,0.358592]
[1742154328697,0.00581156,83385.0,83384.0,0.361592]
[1742154329076,0.00581156,83385.0,83384.0,0.358592]
[1742154330042,0.00581156,83385.0,83384.0,0.364592]
[1742154330242,0.00581156,83385.0,83384.0,0.369592]
[1742154330585,0.00581156,83385.0,83384.0,0.698475]
[1742154330880,0.00581156,83385.0,83384.0,0.657875]
[1742154331752,0.00581156,83385.0,83384.0,0.651875]
[1742154332156,0.00581156,83385.0,83384.0,0.657875]
[1742154332559,0.00581156,83385.0,83384.0,0.165952]
[1742154332755,0.00581156,83385.0,83384.0,0.363835]
[1742154333228,0.00581156,83385.0,83384.0,0.012]
[1742154333422,0.00581156,83385.0,83383.0,0.3]
[1742154333561,0.011992,83383.0,83379.0,0.14796]
[1742154333763,0.19773885,83384.0,83379.0,0.351847]
[1742154333962,0.191883,83384.0,83379.0,0.351847]
[1742154334160,0.203879,83382.0,83379.0,0.14796]
[1742154334383,0.011992,83382.0,83379.0,0.14796]
[1742154334591,0.191883,83384.0,83379.0,0.14796]
[1742154334789,0.00585585,83381.0,83379.0,0.006]
[1742154334998,0.191883,83384.0,83379.0,0.006]
[1742154335227,0.00585585,83380.0,83378.0,0.011993]
[1742154335396,0.191883,83384.0,83378.0,0.011993]
[1742154335644,0.203902,83373.0,83372.0,0.0003384]
[1742154336026,0.20974875,83373.0,83372.0,0.0003384]
[1742154336482,0.22854735,83373.0,83372.0,0.0003384]
[1742154336690,0.23004675,83373.0,83372.0,0.0003384]
[1742154336892,0.27574735,83373.0,83372.0,0.0003384]
[1742154337234,0.25694875,83373.0,83372.0,0.0003384]
[1742154337451,0.25694875,83373.0,83372.0,0.0043384]
[1742154337658,0.25694875,83373.0,83372.0,0.0003384]
[1742154338090,0.25694875,83373.0,83372.0,0.0043384]
[1742154338296,0.25694875,83373.0,83372.0,0.0023384]
[1742154338474,0.25694875,83373.0,83372.0,0.0003384]
[1742154338901,0.25694875,83373.0,83372.0,0.0013384]
[1742154339427,0.25694875,83373.0,83372.0,0.0023384]
[1742154339831,0.25694875,83373.0,83372.0,0.0013384]
[1742154340031,0.27575016,83373.0,83372.0,0.0013384]
[1742154340238,0.27575016,83373.0,83372.0,4e-07]
[1742154340239,0.37239101,83373.0,83372.0,4e-07]
[1742154340462,0.94603474,83373.0,83372.0,4e-07]
[1742154340674,0.94603474,83373.0,83364.0,2e-07]
[1742154340675,0.291022,83365.0,83364.0,2e-07]
[1742154340881,0.57420658,83365.0,83364.0,2e-07]
[1742154341080,0.58000708,83365.0,83364.0,2e-07]
[1742154342146,0.90428353,83365.0,83364.0,2e-07]
[1742154343491,0.90828353,83365.0,83364.0,2e-07]
[1742154343689,0.203995,83335.0,83330.0,0.3]
[1742154344219,0.00579417,83334.0,83331.0,0.204005]
[1742154344414,0.00579417,83334.0,83333.0,0.012]
[1742154344602,0.0009979,83347.0,83343.0,0.203973]
[1742154344802,4.115e-05,83347.0,83343.0,0.203973]
[1742154345023,0.00579417,83346.0,83343.0,0.203973]
[1742154345503,0.00579417,83346.0,83343.0,0.011998]
[1742154345901,0.00579417,83346.0,83345.0,0.011998]
[1742154346117,4.115e-05,83347.0,83346.0,0.203968]
[1742154346519,4.115e-05,83347.0,83346.0,1.5]
[1742154346716,0.01203915,83347.0,83346.0,1.5]
[1742154347290,0.203968,83346.0,83336.0,0.011999]
[1742154347503,0.191976,83344.0,83343.0,0.002]
[1742154347709,0.203974,83344.0,83343.0,0.002]
[1742154348118,0.203982,83341.0,83335.0,0.3]
[1742154348321,0.203982,83341.0,83336.0,0.203992]
[1742154348524,4.115e-05,83347.0,83343.0,0.0003384]
[1742154349155,4.115e-05,83347.0,83346.0,0.011998]
[1742154350647,4.115e-05,83347.0,83346.0,0.203968]
[1742154352033,4.115e-05,83347.0,83343.0,0.0123364]
[1742154352235,4.115e-05,83347.0,83346.0,0.006]
[1742154353137,4.115e-05,83347.0,83345.0,0.191972]
[1742154353833,4.115e-05,83347.0,83346.0,0.003]
[1742154354047,4.115e-05,83347.0,83345.0,0.191972]
[1742154354562,0.01884459,83347.0,83345.0,0.191972]
[1742154354797,0.01884459,83347.0,83345.0,0.20397]
[1742154355007,0.203968,83346.0,83343.0,0.0003384]
[1742154355216,0.203973,83344.0,83343.0,0.0003384]
[1742154356273,0.20975373,83344.0,83343.0,0.0003384]
[1742154357429,0.011999,83335.0,83328.0,0.204011]
[1742154357978,0.192001,83333.0,83328.0,0.012]
[1742154358156,0.204001,83333.0,83328.0,0.012]
[1742154358529,0.00578068,83332.0,83328.0,0.012]
[1742154359559,0.02458668,83332.0,83328.0,0.204012]
[1742154359766,0.00578068,83332.0,83330.0,0.192007]
[1742154359975,0.203996,83335.0,83330.0,0.012]
[1742154360176,0.00578068,83331.0,83328.0,0.208012]
[1742154360351,0.203996,83335.0,83330.0,0.204007]
[1742154360763,0.203973,83344.0,83339.0,0.191986]
[1742154360965,0.01203915,83347.0,83339.0,0.203985]
[1742154361171,4.115e-05,83347.0,83344.0,0.191975]
[1742154361374,4.115e-05,83347.0,83345.0,0.19197]
[1742154361641,4.115e-05,83347.0,83344.0,0.203973]
[1742154362031,4.115e-05,83347.0,83346.0,0.19197]
[1742154362204,4.115e-05,83347.0,83346.0,0.203968]
[1742154363071,4.115e-05,83347.0,83346.0,0.503968]
[1742154363605,4.115e-05,83347.0,83346.0,0.509968]
[1742154364009,4.115e-05,83347.0,83346.0,0.506968]
[1742154364213,4.115e-05,83347.0,83346.0,0.512968]
[1742154365187,4.115e-05,83347.0,83346.0,0.509968]
[1742154365387,4.115e-05,83347.0,83346.0,0.515968]
[1742154365931,4.115e-05,83347.0,83346.0,2.009968]
[1742154366136,4.115e-05,83347.0,83346.0,2.009068]
[1742154366732,4.115e-05,83347.0,83346.0,2.015068]
[1742154366932,4.115e-05,83347.0,83346.0,2.03752909]
[1742154368416,4.115e-05,83347.0,83346.0,2.04645349]
[1742154369523,4.115e-05,83347.0,83346.0,0.48230109]
[1742154369738,0.20400715,83347.0,83346.0,0.03446109]
[1742154369943,0.20980185,83347.0,83346.0,0.03446109]
[1742154370346,0.20980185,83347.0,83346.0,0.012]
[1742154370486,0.20980185,83347.0,83346.0,0.006]
[1742154370700,0.20980185,83347.0,83346.0,0.011]
[1742154371397,0.00583585,83347.0,83346.0,0.011]
[1742154371604,0.00583585,83347.0,83346.0,0.022998]
[1742154371800,0.00583585,83347.0,83346.0,0.016998]
[1742154372033,4.115e-05,83347.0,83346.0,0.016998]
[1742154372237,4.115e-05,83347.0,83346.0,0.011]
[1742154372636,4.115e-05,83347.0,83346.0,0.016998]
[1742154373081,4.115e-05,83347.0,83346.0,0.021998]